fUST/lending_fUST_20250819
["ID","MTS","AMOUNT","RATE_DAILY","PERIOD"]
[380097730,1755540654155,-1500.0,0.00022414,2]
[380097731,1755540654165,-480.0,0.00022465,2]
[380097732,1755540654174,-480.0,0.00022465,2]
[380097733,1755540654184,-480.0,0.00022465,2]
[380097734,1755540654193,-480.0,0.00022465,2]
[380097735,1755540654203,-492.16,0.00022465,2]
[380097736,1755540654213,-480.0,0.00022465,2]
[380097737,1755540654222,-480.0,0.00022465,2]
[380097738,1755540654231,-480.0,0.00022465,2]
[380097739,1755540654241,-480.0,0.00022465,2]
[380097740,1755540654250,-525.31,0.00022465,2]
[380097741,1755540654259,-1144.44,0.00022465,2]
[380097742,1755540654268,-2196.43,0.00022465,2]
[380097743,1755540654278,-509.88,0.00022465,2]
[380097744,1755540654288,-480.0,0.00022465,2]
[380097745,1755540654298,-2460.24,0.00022465,2]
[380097746,1755540654309,-1025.25,0.00022465,2]
[380097747,1755540654319,-2037.63,0.00022465,2]
[380097748,1755540654328,-480.0,0.00022465,2]
[380097749,1755540654338,-532.54536747,0.00022465,2]
[380097750,1755540654348,-956.52,0.00022465,2]
[380097751,1755540654358,-480.0,0.00022465,2]
[380097752,1755540654367,-912.8,0.00022465,2]
[380097753,1755540654376,-1865.16,0.00022465,2]
[380097754,1755540654386,-3154.44,0.00022465,2]
[380097755,1755540654397,-1323.13,0.00022465,2]
[380097756,1755540654406,-1226.57,0.00022465,2]
[380097757,1755540654416,-480.0,0.00022465,2]
[380097758,1755540654426,-480.0,0.00022465,2]
[380097759,1755540654436,-456.43000576,0.00022465,2]
[380097760,1755540654446,-578.28,0.00022465,2]
[380097761,1755540654455,-578.32,0.00022465,2]
[380097762,1755540654465,-878.1,0.00022465,2]
[380097763,1755540654474,-1482.03,0.00022465,2]
[380097764,1755540654484,-862.45,0.00022465,2]
[380097765,1755540654494,-480.0,0.00022465,2]
[380097766,1755540654503,-480.0,0.00022465,2]
[380097767,1755540654512,-1075.46,0.00022465,2]
[380097768,1755540654522,-520.78,0.00022465,2]
[380097769,1755540654531,-480.0,0.00022465,2]
[380097770,1755540654541,-528.31,0.00022465,2]
[380097771,1755540654550,-485.74,0.00022465,2]
[380097772,1755540654560,-480.0,0.00022465,2]
[380097773,1755540654569,-480.0,0.00022465,2]
[380097774,1755540654579,-705.58,0.00022465,2]
[380097775,1755540654590,-480.0,0.00022465,2]
[380097776,1755540654600,-500.0,0.00022529,2]
[380097777,1755540654608,-500.0,0.00022529,2]
[380097778,1755540654618,-260.0,0.00022538,2]
[380097779,1755540654627,-1000.0,0.000226,2]
[380097780,1755540654636,-1000.0,0.000226,2]
[380097781,1755540654645,-500.0,0.00022612,2]
[380097782,1755540654655,-502.95669463,0.00022644,2]
[380097783,1755540654664,-900.98727727,0.00022644,2]
[380097784,1755540654674,-260.0,0.00022706,2]
[380097785,1755540654684,-168.0,0.00022713,2]
[380097786,1755540654694,-260.0,0.00022726,2]
[380097787,1755540654703,-480.0,0.00022739,2]
[380097788,1755540654713,-538.77378351,0.00022739,2]
[380097789,1755540654723,-480.0,0.00022739,2]
[380097790,1755540654734,-480.0,0.00022739,2]
[380097791,1755540654743,-492.16,0.00022739,2]
[380097792,1755540654753,-151.0,0.00022739,7]
[380097793,1755540654762,-151.0,0.00022739,7]
[380097794,1755540654771,-151.0,0.00022739,7]
[380097795,1755540654780,-151.0,0.00022739,7]
[380097796,1755540654789,-151.0,0.00022739,7]
[380097797,1755540654802,-151.0,0.00022739,7]
[380097798,1755540654814,-480.0,0.00022739,2]
[380097799,1755540654823,-480.0,0.00022739,2]
[380097800,1755540654832,-151.0,0.00022739,7]
[380097801,1755540654843,-365.090392,0.00022739,7]
[380097802,1755540654852,-365.090392,0.00022739,7]
[380097803,1755540654861,-480.0,0.00022739,2]
[380097804,1755540654872,-480.0,0.00022739,2]
[380097805,1755540654881,-525.31,0.00022739,2]
[380097806,1755540654890,-1144.44,0.00022739,2]
[380097807,1755540654899,-2196.43,0.00022739,2]
[380097808,1755540654908,-509.88,0.00022739,2]
[380097809,1755540654917,-2460.24,0.00022739,2]
[380097810,1755540654926,-1025.25,0.00022739,2]
[380097811,1755540654937,-2037.63,0.00022739,2]
[380097812,1755540654946,-480.0,0.00022739,2]
[380097813,1755540654955,-956.52,0.00022739,2]
[380097814,1755540654965,-480.0,0.00022739,2]
[380097815,1755540654974,-912.8,0.00022739,2]
[380097816,1755540654983,-1865.16,0.00022739,2]
[380097817,1755540654992,-3154.44,0.00022739,2]
[380097818,1755540655002,-1323.13,0.00022739,2]
[380097819,1755540655012,-1226.57,0.00022739,2]
[380097820,1755540655020,-480.0,0.00022739,2]
[380097821,1755540655030,-480.0,0.00022739,2]
[380097822,1755540655040,-578.28,0.00022739,2]
[380097823,1755540655049,-578.32,0.00022739,2]
[380097824,1755540655059,-878.1,0.00022739,2]
[380097825,1755540655070,-1482.03,0.00022739,2]
[380097826,1755540655078,-862.45,0.00022739,2]
[380097827,1755540655088,-480.0,0.00022739,2]
[380097828,1755540655096,-480.0,0.00022739,2]
[380097829,1755540655105,-1075.46,0.00022739,2]
[380097830,1755540655115,-520.78,0.00022739,2]
[380097831,1755540655124,-480.0,0.00022739,2]
[380097832,1755540655132,-485.74,0.00022739,2]
[380097833,1755540655142,-528.31,0.00022739,2]
[380097834,1755540655151,-480.0,0.00022739,2]
[380097835,1755540655160,-480.0,0.00022739,2]
[380097836,1755540655169,-705.58,0.00022739,2]
[380097837,1755540655178,-480.0,0.00022739,2]
[380097838,1755540655187,-1400.0,0.00022769,2]
[380097839,1755540655196,-587.0,0.00022775,2]
[380097840,1755540655205,-1088.57,0.0002278,2]
[380097841,1755540655215,-260.0,0.00022782,2]
[380097842,1755540655224,-469.53232696,0.00022794,2]
[380097843,1755540655233,-151.0,0.000228,6]
[380097844,1755540655243,-215.75323784,0.000228,7]
[380097845,1755540655253,-375.82681177,0.000228,7]
[380097846,1755540655264,-160.0,0.000228,7]
[380097847,1755540655274,-4773.85318233,0.00022809,2]
[380097848,1755540655283,-168.0,0.00022818,2]
[380097849,1755540655292,-149.888905,0.00022834,2]
[380097850,1755540655302,-260.0,0.00022895,2]
[380097851,1755540655311,-1000.0,0.00022943,2]
[380097852,1755540655322,-1000.0,0.00022943,2]
[380097853,1755540655331,-580.787823,0.00022959,2]
[380097854,1755540655340,-580.787823,0.00022959,2]
[380097855,1755540655349,-580.787823,0.00022959,2]
[380097856,1755540655358,-580.787823,0.00022959,2]
[380097857,1755540655368,-580.787823,0.00022959,2]
[380097858,1755540655377,-502.68911611,0.00022961,2]
[380097859,1755540655386,-986.0,0.00022996,2]
[380097860,1755540655396,-5000.0,0.00023,2]
[380097861,1755540655405,-160.0,0.00023,2]
[380097862,1755540655414,-480.0,0.00023013,2]
[380097863,1755540655494,-480.0,0.00023013,2]
[380097864,1755540655504,-480.0,0.00023013,2]
[380097865,1755540655515,-151.0,0.00023013,7]
[380097866,1755540655525,-151.0,0.00023013,7]
[380097867,1755540655535,-151.0,0.00023013,7]
[380097868,1755540655545,-151.0,0.00023013,7]
[380097869,1755540655555,-151.0,0.00023013,7]
[380097870,1755540655565,-151.0,0.00023013,7]
[380097871,1755540655576,-492.16,0.00023013,2]
[380097872,1755540655585,-151.809288,0.00023013,7]
[380097873,1755540655595,-480.0,0.00023013,2]
[380097874,1755540655605,-480.0,0.00023013,2]
[380097875,1755540655615,-480.0,0.00023013,2]
[380097876,1755540655624,-460.0,0.00023013,2]
[380097877,1755540655634,-525.31,0.00023013,2]
[380097878,1755540655643,-1144.44,0.00023013,2]
[380097879,1755540655653,-2196.43,0.00023013,2]
[380097880,1755540655662,-509.88,0.00023013,2]
[380097881,1755540655672,-2460.24,0.00023013,2]
[380097882,1755540655681,-1025.25,0.00023013,2]
[380097883,1755540655691,-2037.63,0.00023013,2]
[380097884,1755540655700,-480.0,0.00023013,2]
[380097885,1755540655709,-956.52,0.00023013,2]
[380097886,1755540655719,-480.0,0.00023013,2]
[380097887,1755540655728,-912.8,0.00023013,2]
[380097888,1755540655738,-3154.44,0.00023013,2]
[380097889,1755540655747,-1865.16,0.00023013,2]
[380097890,1755540655756,-1323.13,0.00023013,2]
[380097891,1755540655766,-1226.57,0.00023013,2]
[380097892,1755540655775,-480.0,0.00023013,2]
[380097893,1755540655784,-480.0,0.00023013,2]
[380097894,1755540655793,-578.28,0.00023013,2]
[380097895,1755540655806,-578.32,0.00023013,2]
[380097896,1755540655815,-878.1,0.00023013,2]
[380097897,1755540655825,-1482.03,0.00023013,2]
[380097898,1755540655834,-862.45,0.00023013,2]
[380097899,1755540655845,-480.0,0.00023013,2]
[380097900,1755540655854,-480.0,0.00023013,2]
[380097901,1755540655864,-1075.46,0.00023013,2]
[380097902,1755540655874,-520.78,0.00023013,2]
[380097903,1755540655883,-480.0,0.00023013,2]
[380097904,1755540655894,-485.74,0.00023013,2]
[380097905,1755540655904,-528.31,0.00023013,2]
[380097906,1755540655913,-480.0,0.00023013,2]
[380097907,1755540655923,-480.0,0.00023013,2]
[380097908,1755540655933,-705.58,0.00023013,2]
[380097909,1755540655942,-480.0,0.00023013,2]
[380097910,1755540655952,-183.0,0.00023014,7]
[380097911,1755540655961,-500.0,0.00023014,2]
[380097912,1755540655970,-151.0,0.00023014,2]
[380097913,1755540655980,-151.0,0.00023014,2]
[380097914,1755540655990,-151.0,0.00023014,2]
[380097915,1755540655999,-151.0,0.00023014,2]
[380097916,1755540656009,-500.0,0.00023014,2]
[380097917,1755540656018,-151.0,0.00023014,2]
[380097918,1755540656027,-151.0,0.00023014,2]
[380097919,1755540656036,-151.0,0.00023014,2]
[380097920,1755540656046,-151.0,0.00023014,2]
[380097921,1755540656055,-151.0,0.00023014,2]
[380097922,1755540656065,-151.0,0.00023014,2]
[380097923,1755540656075,-151.0,0.00023014,2]
[380097924,1755540656085,-255.0,0.00023014,2]
[380097925,1755540656094,-151.0,0.00023014,2]
[380097926,1755540656104,-151.09477389,0.00023014,2]
[380097927,1755540656113,-151.0,0.00023014,2]
[380097928,1755540656123,-500.0,0.00023014,2]
[380097929,1755540656132,-151.0,0.00023014,2]
[380097930,1755540656141,-199.29105189,0.00023014,2]
[380097931,1755540656150,-151.0,0.0002302,7]
[380097932,1755540656166,-151.0,0.0002302,7]
[380097933,1755540656185,-194.7379651,0.00023021,2]
[380097934,1755540656198,-500.0,0.00023077,2]
[380097935,1755540656214,-168.0,0.00023094,2]
[380097936,1755540656231,-528.58062739,0.000231,7]
[380097937,1755540656247,-501.05701814,0.00023148,2]
[380097938,1755540656264,-247.38662679,0.00023148,2]
[380097939,1755540656278,-1000.0,0.0002316,2]
[380097940,1755540656293,-3192.26,0.000232,7]
[380097941,1755540656309,-18964.43,0.000232,2]
[380097942,1755540656322,-4773.85318233,0.00023225,2]
[380097943,1755540656336,-151.0,0.00023287,7]
[380097944,1755540656351,-198.93790813,0.00023287,2]
[380097945,1755540656367,-271.709396,0.00023287,7]
[380097946,1755540656383,-480.0,0.00023287,2]
[380097947,1755540656401,-480.0,0.00023287,2]
[380097948,1755540656413,-492.16,0.00023287,2]
[380097949,1755540656425,-480.0,0.00023287,2]
[380097950,1755540656442,-480.0,0.00023287,2]
[380097951,1755540656455,-480.0,0.00023287,2]
[380097952,1755540656468,-525.31,0.00023287,2]
[380097953,1755540656483,-151.0,0.00023287,7]
[380097954,1755540656495,-1144.44,0.00023287,2]
[380097955,1755540656508,-2196.43,0.00023287,2]
[380097956,1755540656520,-509.88,0.00023287,2]
[380097957,1755540656534,-151.0,0.00023287,7]
[380097958,1755540656547,-2460.24,0.00023287,2]
[380097959,1755540656560,-1025.25,0.00023287,2]
[380097960,1755540656574,-2037.63,0.00023287,2]
[380097961,1755540656587,-346.29923377,0.00023287,2]
[380097962,1755540656600,-1000.0,0.00023287,2]
[380097963,1755540656613,-1000.0,0.00023287,2]
[380097964,1755540656625,-1000.0,0.00023287,2]
[380097965,1755540656637,-1000.0,0.00023287,2]
[380097966,1755540656650,-1000.0,0.00023287,2]
[380097967,1755540656662,-1000.0,0.00023287,2]
[380097968,1755540656675,-1000.0,0.00023287,2]
[380097969,1755540656687,-1000.0,0.00023287,2]
[380097970,1755540656699,-1000.0,0.00023287,2]
[380097971,1755540656713,-1000.0,0.00023287,2]
[380097972,1755540656725,-1000.0,0.00023287,2]
[380097973,1755540656738,-1000.0,0.00023287,2]
[380097974,1755540656750,-1000.0,0.00023287,2]
[380097975,1755540656763,-1000.0,0.00023287,2]
[380097976,1755540656776,-1000.0,0.00023287,2]
[380097977,1755540656789,-1000.0,0.00023287,2]
[380097978,1755540656804,-1000.0,0.00023287,2]
[380097979,1755540656817,-1000.0,0.00023287,2]
[380097980,1755540656831,-1000.0,0.00023287,2]
[380097981,1755540656843,-1000.0,0.00023287,2]
[380097982,1755540656855,-1000.0,0.00023287,2]
[380097983,1755540656868,-685.725828,0.00023287,2]
[380097984,1755540656881,-480.0,0.00023287,2]
[380097985,1755540656895,-956.52,0.00023287,2]
[380097986,1755540656908,-912.8,0.00023287,2]
[380097987,1755540656919,-3154.44,0.00023287,2]
[380097988,1755540656933,-1865.16,0.00023287,2]
[380097989,1755540656945,-1323.13,0.00023287,2]
[380097990,1755540656958,-1226.57,0.00023287,2]
[380097991,1755540656967,-235.407001,0.00023287,7]
[380097992,1755540656977,-151.0,0.00023287,7]
[380097993,1755540656987,-480.0,0.00023287,2]
[380097994,1755540656996,-235.407001,0.00023287,7]
[380097995,1755540657005,-480.0,0.00023287,2]
[380097996,1755540657014,-151.0,0.00023287,7]
[380097997,1755540657023,-151.0,0.00023287,7]
[380097998,1755540657033,-151.0,0.00023287,7]
[380097999,1755540657172,-578.28,0.00023287,2]
[380098000,1755540657191,-878.1,0.00023287,2]
[380098001,1755540657201,-578.32,0.00023287,2]
[380098002,1755540657211,-1482.03,0.00023287,2]
[380098003,1755540657221,-862.45,0.00023287,2]
[380098004,1755540657230,-167.820244,0.00023287,7]
[380098005,1755540657240,-480.0,0.00023287,2]
[380098006,1755540657249,-167.820244,0.00023287,7]
[380098007,1755540657258,-480.0,0.00023287,2]
[380098008,1755540657267,-151.0,0.00023287,7]
[380098009,1755540657277,-1075.46,0.00023287,2]
[380098010,1755540657287,-151.0,0.00023287,7]
[380098011,1755540657296,-241.165282,0.00023287,7]
[380098012,1755540657306,-241.165282,0.00023287,7]
[380098013,1755540657317,-151.0,0.00023287,7]
[380098014,1755540657327,-151.0,0.00023287,7]
[380098015,1755540657336,-520.78,0.00023287,2]
[380098016,1755540657346,-480.0,0.00023287,2]
[380098017,1755540657355,-485.74,0.00023287,2]
[380098018,1755540657364,-528.31,0.00023287,2]
[380098019,1755540657374,-151.0,0.00023287,7]
[380098020,1755540657383,-480.0,0.00023287,2]
[380098021,1755540657403,-151.0,0.00023287,7]
[380098022,1755540657413,-480.0,0.00023287,2]
[380098023,1755540657422,-705.58,0.00023287,2]
[380098024,1755540657432,-527.712994,0.00023287,7]
[380098025,1755540657441,-527.712994,0.00023287,7]
[380098026,1755540657451,-480.0,0.00023287,2]
[380098027,1755540657461,-151.0,0.00023287,7]
[380098028,1755540657471,-500.0,0.00023288,2]
[380098029,1755540657480,-198.0,0.00023288,2]
[380098030,1755540657490,-151.0,0.00023288,2]
[380098031,1755540657501,-151.0,0.00023288,2]
[380098032,1755540657510,-500.0,0.00023288,2]
[380098033,1755540657522,-151.0,0.00023288,2]
[380098034,1755540657531,-151.0,0.00023288,2]
[380098035,1755540657540,-151.0,0.00023288,2]
[380098036,1755540657550,-151.0,0.00023288,2]
[380098037,1755540657559,-500.0,0.00023288,2]
[380098038,1755540657569,-151.0,0.00023288,2]
[380098039,1755540657578,-151.0,0.000233,6]
[380098040,1755540657587,-151.0,0.0002341,7]
[380098041,1755540657597,-151.0,0.0002341,7]
[380098042,1755540657606,-151.0,0.0002341,7]
[380098043,1755540657617,-151.0,0.0002341,7]
[380098044,1755540657626,-151.0,0.0002341,7]
[380098045,1755540657636,-151.0,0.0002341,7]
[380098046,1755540657645,-344.24446895,0.00023491,2]
[380098047,1755540657655,-927.18,0.000235,7]
[380098048,1755540657664,-149.888905,0.00023511,2]
[380098049,1755540657673,-151.0,0.00023548,7]
[380098050,1755540657683,-151.0,0.00023548,7]
[380098051,1755540657692,-226.196698,0.00023548,7]
[380098052,1755540657701,-151.0,0.00023548,7]
[380098053,1755540657712,-151.0,0.00023561,7]
[380098054,1755540657721,-151.0,0.00023561,7]
[380098055,1755540657731,-151.0,0.00023561,7]
[380098056,1755540657740,-151.0,0.00023561,7]
[380098057,1755540657750,-480.0,0.00023561,2]
[380098058,1755540657759,-480.0,0.00023561,2]
[380098059,1755540657768,-492.16,0.00023561,2]
[380098060,1755540657778,-480.0,0.00023561,2]
[380098061,1755540657787,-376.99226764,0.00023561,2]
[380098062,1755540657797,-480.0,0.00023561,2]
[380098063,1755540657810,-525.31,0.00023561,2]
[380098064,1755540657819,-1144.44,0.00023561,2]
[380098065,1755540657830,-2196.43,0.00023561,2]
[380098066,1755540657839,-509.88,0.00023561,2]
[380098067,1755540657849,-2460.24,0.00023561,2]
[380098068,1755540657859,-1025.25,0.00023561,2]
[380098069,1755540657868,-2037.63,0.00023561,2]
[380098070,1755540657880,-362.9751841,0.00023561,2]
[380098071,1755540657890,-956.52,0.00023561,2]
[380098072,1755540657899,-912.8,0.00023561,2]
[380098073,1755540657908,-3154.44,0.00023561,2]
[380098074,1755540657918,-1865.16,0.00023561,2]
[380098075,1755540657929,-1323.13,0.00023561,2]
[380098076,1755540657940,-1226.57,0.00023561,2]
[380098077,1755540657950,-480.0,0.00023561,2]
[380098078,1755540657961,-480.0,0.00023561,2]
[380098079,1755540657971,-578.28,0.00023561,2]
[380098080,1755540657982,-878.1,0.00023561,2]
[380098081,1755540657992,-578.32,0.00023561,2]
[380098082,1755540658001,-1482.03,0.00023561,2]
[380098083,1755540658011,-862.45,0.00023561,2]
[380098084,1755540658022,-480.0,0.00023561,2]
[380098085,1755540658032,-439.16383042,0.00023561,2]
[380098086,1755540658040,-1075.46,0.00023561,2]
[380098087,1755540658051,-200.0,0.00023561,2]
[380098088,1755540658064,-200.0,0.00023561,2]
[380098089,1755540658075,-200.0,0.00023561,2]
[380098090,1755540658084,-200.0,0.00023561,2]
[380098091,1755540658094,-200.0,0.00023561,2]
[380098092,1755540658103,-200.0,0.00023561,2]
[380098093,1755540658112,-520.78,0.00023561,2]
[380098094,1755540658121,-200.0,0.00023561,2]
[380098095,1755540658130,-480.0,0.00023561,2]
[380098096,1755540658139,-256.93432602,0.00023561,2]
[380098097,1755540658148,-485.74,0.00023561,2]
[380098098,1755540658157,-528.31,0.00023561,2]
[380098099,1755540658167,-460.30844766,0.00023561,2]
[380098100,1755540658176,-480.0,0.00023561,2]
[380098101,1755540658185,-705.58,0.00023561,2]
[380098102,1755540658194,-428.81459754,0.00023561,2]
[380098103,1755540658204,-500.0,0.00023562,2]
[380098104,1755540658213,-500.0,0.00023562,2]
[380098105,1755540658223,-151.0,0.00023562,2]
[380098106,1755540658232,-151.0,0.00023562,2]
[380098107,1755540658241,-245.0,0.00023562,2]
[380098108,1755540658250,-198.0,0.00023562,2]
[380098109,1755540658259,-200.76264029,0.00023562,2]
[380098110,1755540658268,-151.0,0.00023562,2]
[380098111,1755540658277,-151.0,0.00023562,7]
[380098112,1755540658287,-151.0,0.00023562,7]
[380098113,1755540658296,-161.04843478,0.00023589,2]
[380098114,1755540658305,-8779.83,0.000236,7]
[380098115,1755540658314,-4773.85318233,0.00023641,2]
[380098116,1755540658324,-864.0,0.00023667,20]
[380098117,1755540658333,-1115.77673326,0.000237,30]
[380098118,1755540658343,-1500.0,0.00023708,2]
[380098119,1755540658352,-161.04843478,0.00023726,2]
[380098120,1755540658361,-1360.72,0.0002373,2]
[380098121,1755540658370,-153.0,0.00023781,2]
[380098122,1755540658379,-153.0,0.00023781,2]
[380098123,1755540658388,-153.0,0.00023781,2]
[380098124,1755540658398,-153.0,0.00023781,2]
[380098125,1755540658407,-306.0,0.00023781,2]
[380098126,1755540658417,-929.4172769,0.00023781,2]
[380098127,1755540658427,-153.0,0.00023781,2]
[380098128,1755540658436,-12683.78573522,0.00023835,7]
[380098129,1755540658446,-480.0,0.00023835,2]
[380098130,1755540658456,-480.0,0.00023835,2]
[380098131,1755540658465,-492.16,0.00023835,2]
[380098132,1755540658475,-151.0,0.00023835,7]
[380098133,1755540658484,-151.0,0.00023835,7]
[380098134,1755540658493,-151.0,0.00023835,7]
[380098135,1755540658503,-151.0,0.00023835,7]
[380098136,1755540658512,-151.0,0.00023835,7]
[380098137,1755540658521,-480.0,0.00023835,2]
[380098138,1755540658531,-151.0,0.00023835,7]
[380098139,1755540658540,-365.090392,0.00023835,7]
[380098140,1755540658550,-365.090392,0.00023835,7]
[380098141,1755540658560,-480.0,0.00023835,2]
[380098142,1755540658569,-525.31,0.00023835,2]
[380098143,1755540658579,-1144.44,0.00023835,2]
[380098144,1755540658589,-2196.43,0.00023835,2]
[380098145,1755540658599,-509.88,0.00023835,2]
[380098146,1755540658608,-2460.24,0.00023835,2]
[380098147,1755540658618,-1025.25,0.00023835,2]
[380098148,1755540658627,-2037.63,0.00023835,2]
[380098149,1755540658636,-956.52,0.00023835,2]
[380098150,1755540658645,-912.8,0.00023835,2]
[380098151,1755540658655,-3154.44,0.00023835,2]
[380098152,1755540658664,-1865.16,0.00023835,2]
[380098153,1755540658673,-1323.13,0.00023835,2]
[380098154,1755540658682,-1226.57,0.00023835,2]
[380098155,1755540658691,-480.0,0.00023835,2]
[380098156,1755540658701,-480.0,0.00023835,2]
[380098157,1755540658710,-578.28,0.00023835,2]
[380098158,1755540658719,-878.1,0.00023835,2]
[380098159,1755540658729,-578.32,0.00023835,2]
[380098160,1755540658738,-1482.03,0.00023835,2]
[380098161,1755540658747,-862.45,0.00023835,2]
[380098162,1755540658757,-480.0,0.00023835,2]
[380098163,1755540658766,-1075.46,0.00023835,2]
[380098164,1755540658775,-520.78,0.00023835,2]
[380098165,1755540658785,-480.0,0.00023835,2]
[380098166,1755540658794,-485.74,0.00023835,2]
[380098167,1755540658806,-528.31,0.00023835,2]
[380098168,1755540658815,-480.0,0.00023835,2]
[380098169,1755540658825,-705.58,0.00023835,2]
[380098170,1755540658834,-161.04843478,0.00023836,2]
[380098171,1755540658844,-214.71480021,0.00023836,2]
[380098172,1755540658853,-500.0,0.00023836,2]
[380098173,1755540658862,-151.0,0.00023836,2]
[380098174,1755540658871,-151.65313807,0.00023836,2]
[380098175,1755540658882,-151.0,0.00023836,2]
[380098176,1755540658892,-1400.0,0.00023865,2]
[380098177,1755540658901,-161.04843478,0.00023973,2]
[380098178,1755540658910,-160.0,0.00024,7]
[380098179,1755540658919,-160.0,0.00024,7]
[380098180,1755540658928,-160.0,0.00024,7]
[380098181,1755540658937,-160.0,0.00024,7]
[380098182,1755540658947,-843.81736472,0.00024,7]
[380098183,1755540658956,-216.85420361,0.00024,7]
[380098184,1755540658965,-164.0,0.00024,7]
[380098185,1755540658975,-232.18122251,0.00024,7]
[380098186,1755540658984,-160.0,0.00024,7]
[380098187,1755540658994,-375.82681177,0.00024,7]
[380098188,1755540659003,-160.0,0.00024,7]
[380098189,1755540659013,-4773.85318233,0.00024056,2]
[380098190,1755540659022,-161.04843478,0.00024082,2]
[380098191,1755540659032,-480.0,0.00024109,2]
[380098192,1755540659042,-480.0,0.00024109,2]
[380098193,1755540659052,-164.932012,0.00024109,7]
[380098194,1755540659062,-151.0,0.00024109,7]
[380098195,1755540659072,-151.0,0.00024109,7]
[380098196,1755540659082,-151.792072,0.00024109,7]
[380098197,1755540659091,-492.16,0.00024109,2]
[380098198,1755540659100,-480.0,0.00024109,2]
[380098199,1755540659109,-302.43053191,0.00024109,2]
[380098200,1755540659119,-525.31,0.00024109,2]
[380098201,1755540659129,-1144.44,0.00024109,2]
[380098202,1755540659139,-2196.43,0.00024109,2]
[380098203,1755540659148,-509.88,0.00024109,2]
[380098204,1755540659158,-2460.24,0.00024109,2]
[380098205,1755540659168,-1025.25,0.00024109,2]
[380098206,1755540659177,-2037.63,0.00024109,2]
[380098207,1755540659187,-956.52,0.00024109,2]
[380098208,1755540659196,-912.8,0.00024109,2]
[380098209,1755540659207,-3154.44,0.00024109,2]
[380098210,1755540659218,-1865.16,0.00024109,2]
[380098211,1755540659227,-1323.13,0.00024109,2]
[380098212,1755540659237,-1226.57,0.00024109,2]
[380098213,1755540659246,-480.0,0.00024109,2]
[380098214,1755540659256,-480.0,0.00024109,2]
[380098215,1755540659266,-578.28,0.00024109,2]
[380098216,1755540659275,-878.1,0.00024109,2]
[380098217,1755540659284,-578.32,0.00024109,2]
[380098218,1755540659293,-1482.03,0.00024109,2]
[380098219,1755540659302,-862.45,0.00024109,2]
[380098220,1755540659311,-480.0,0.00024109,2]
[380098221,1755540659321,-1075.46,0.00024109,2]
[380098222,1755540659331,-520.78,0.00024109,2]
[380098223,1755540659340,-480.0,0.00024109,2]
[380098224,1755540659349,-485.74,0.00024109,2]
[380098225,1755540659358,-528.31,0.00024109,2]
[380098226,1755540659367,-535.76,0.00024109,2]
[380098227,1755540659377,-705.58,0.00024109,2]
[380098228,1755540659386,-500.0,0.0002411,2]
[380098229,1755540659395,-151.0,0.0002411,2]